[Event "Live Chess"]
[Site "Chess.com"]
[Date "2024.06.02"]
[Round "-"]
[White "PavelChernomordik"]
[Black "bobby_jamesFischer86"]
[Result "1-0"]
[WhiteElo "2498"]
[BlackElo "1629"]
[TimeControl "300"]
[EndTime "5:46:45 PDT"]
[Termination "PavelChernomordik won by checkmate"]

1. e4 {[%clk 0:04:51.7]} 1... c5 {[%clk 0:04:57.8]} 2. Nc3 {[%clk 0:04:50.4]}
2... d6 {[%clk 0:04:57.3]} 3. f4 {[%clk 0:04:49.1]} 3... Nf6 {[%clk 0:04:56.5]}
4. Nf3 {[%clk 0:04:48]} 4... Nc6 {[%clk 0:04:55.8]} 5. Bb5 {[%clk 0:04:46.4]}
5... e6 {[%clk 0:04:54.9]} 6. O-O {[%clk 0:04:44.9]} 6... a6 {[%clk 0:04:53.5]}
7. Bxc6+ {[%clk 0:04:43.5]} 7... bxc6 {[%clk 0:04:52.7]} 8. e5 {[%clk
0:04:42.5]} 8... Nd5 {[%clk 0:04:50.2]} 9. Ne4 {[%clk 0:04:36.8]} 9... Nxf4
{[%clk 0:04:38.5]} 10. d4 {[%clk 0:04:29.4]} 10... d5 {[%clk 0:04:21.7]} 11.
Nxc5 {[%clk 0:04:21.2]} 11... Bxc5 {[%clk 0:04:15.8]} 12. dxc5 {[%clk
0:04:12.9]} 12... Ng6 {[%clk 0:04:13.7]} 13. Bg5 {[%clk 0:04:03.4]} 13... Qa5
{[%clk 0:04:04.5]} 14. Qd4 {[%clk 0:04:01.9]} 14... O-O {[%clk 0:03:58.1]} 15.
h4 {[%clk 0:04:00.7]} 15... h6 {[%clk 0:03:53.5]} 16. Bd2 {[%clk 0:03:54.3]}
16... Ne7 {[%clk 0:03:52.4]} 17. Qg4 {[%clk 0:03:50.5]} 17... Qxc5+ {[%clk
0:03:39.9]} 18. Kh1 {[%clk 0:03:49]} 18... Nf5 {[%clk 0:03:32]} 19. Bb4 {[%clk
0:03:46.3]} 19... Ne3 {[%clk 0:02:39.7]} 20. Bxc5 {[%clk 0:03:35.5]} 20... Nxg4
{[%clk 0:02:37]} 21. Bxf8 {[%clk 0:03:34.6]} 21... Kxf8 {[%clk 0:02:36.4]} 22.
Rfe1 {[%clk 0:03:20.9]} 22... Nf2+ {[%clk 0:02:31.5]} 23. Kg1 {[%clk 0:03:19.3]}
23... Ne4 {[%clk 0:02:30.6]} 24. c4 {[%clk 0:03:14.4]} 24... Bb7 {[%clk
0:02:26.6]} 25. b4 {[%clk 0:03:03.2]} 25... g6 {[%clk 0:02:16]} 26. Nd4 {[%clk
0:02:55.9]} 26... Rc8 {[%clk 0:02:09.1]} 27. Rac1 {[%clk 0:02:51.8]} 27... Rd8
{[%clk 0:01:42.2]} 28. cxd5 {[%clk 0:02:43.1]} 28... Rxd5 {[%clk 0:01:38.9]} 29.
Nxc6 {[%clk 0:02:41]} 29... Bxc6 {[%clk 0:01:37.6]} 30. Rxc6 {[%clk 0:02:38.3]}
30... Rxe5 {[%clk 0:01:16]} 31. Rxa6 {[%clk 0:02:36.6]} 31... f5 {[%clk
0:01:08.1]} 32. a4 {[%clk 0:02:29.5]} 32... Rd5 {[%clk 0:01:06.3]} 33. Rxe6
{[%clk 0:02:25.9]} 33... Rd4 {[%clk 0:01:00.7]} 34. Rxg6 {[%clk 0:02:21.3]}
34... Rxb4 {[%clk 0:00:59.4]} 35. a5 {[%clk 0:02:19.9]} 35... Ra4 {[%clk
0:00:45.6]} 36. a6 {[%clk 0:02:18]} 36... Nc5 {[%clk 0:00:37.5]} 37. Re5 {[%clk
0:02:11.9]} 37... Nxa6 {[%clk 0:00:31.6]} 38. Rxf5+ {[%clk 0:02:08.5]} 38... Ke7
{[%clk 0:00:30.4]} 39. Rxh6 {[%clk 0:02:06.4]} 39... Ra1+ {[%clk 0:00:27.3]} 40.
Kh2 {[%clk 0:02:05.1]} 40... Nb4 {[%clk 0:00:25.9]} 41. Rb5 {[%clk 0:02:01.8]}
41... Nd3 {[%clk 0:00:22.1]} 42. Rb7+ {[%clk 0:01:59.6]} 42... Kd8 {[%clk
0:00:15.1]} 43. Rh8# {[%clk 0:01:58.1]} 1-0

[Event "Live Chess"]
[Site "Chess.com"]
[Date "2024.06.02"]
[Round "-"]
[White "elephantgerrald"]
[Black "megabusyman"]
[Result "0-1"]
[WhiteElo "871"]
[BlackElo "1867"]
[TimeControl "300"]
[EndTime "5:47:00 PDT"]
[Termination "megabusyman won by checkmate"]

1. e4 {[%clk 0:04:56.9]} 1... e5 {[%clk 0:04:57.9]} 2. Nf3 {[%clk 0:04:55.5]}
2... Nc6 {[%clk 0:04:56.3]} 3. Bc4 {[%clk 0:04:54.2]} 3... Bc5 {[%clk
0:04:54.7]} 4. O-O {[%clk 0:04:52.7]} 4... d6 {[%clk 0:04:49.9]} 5. Nc3 {[%clk
0:04:51.4]} 5... Nf6 {[%clk 0:04:42.7]} 6. d3 {[%clk 0:04:49.5]} 6... Bg4 {[%clk
0:04:39.4]} 7. h3 {[%clk 0:04:44.1]} 7... Bh5 {[%clk 0:04:37.4]} 8. Bg5 {[%clk
0:04:24]} 8... h6 {[%clk 0:04:32]} 9. Bh4 {[%clk 0:04:20.5]} 9... g5 {[%clk
0:04:30.6]} 10. g4 {[%clk 0:04:18.8]} 10... Nxg4 {[%clk 0:04:13.6]} 11. Nxg5
{[%clk 0:04:07.5]} 11... Nf6 {[%clk 0:03:38.1]} 12. Nxf7 {[%clk 0:03:56.8]}
12... Rg8+ {[%clk 0:03:16.6]} 13. Ng5 {[%clk 0:03:29.2]} 13... Bxd1 {[%clk
0:02:38.1]} 14. Bf7+ {[%clk 0:03:25.9]} 14... Kf8 {[%clk 0:02:26.4]} 15. Bxg8
{[%clk 0:03:20.2]} 15... hxg5 {[%clk 0:02:25.3]} 16. Bxg5 {[%clk 0:03:11.2]}
16... Kxg8 {[%clk 0:02:23.9]} 17. Rfxd1 {[%clk 0:03:09.8]} 17... Qf8 {[%clk
0:02:16.5]} 18. Kh2 {[%clk 0:03:07.3]} 18... Nh5 {[%clk 0:02:04.5]} 19. Rg1
{[%clk 0:02:55.2]} 19... Qf3 {[%clk 0:01:23.5]} 20. Bh4+ {[%clk 0:02:46.7]}
20... Kh7 {[%clk 0:01:19.8]} 21. Rg5 {[%clk 0:02:41.5]} 21... Nf4 {[%clk
0:01:12.6]} 22. Rag1 {[%clk 0:01:59.6]} 22... Qxh3# {[%clk 0:01:10.6]} 0-1

[Event "Live Chess"]
[Site "Chess.com"]
[Date "2024.06.02"]
[Round "-"]
[White "degringolade64"]
[Black "ameetghasi100"]
[Result "0-1"]
[WhiteElo "2133"]
[BlackElo "2760"]
[TimeControl "300"]
[EndTime "5:47:16 PDT"]
[Termination "ameetghasi100 won by resignation"]

1. e4 {[%clk 0:04:56.6]} 1... g6 {[%clk 0:04:59.9]} 2. d4 {[%clk 0:04:54.6]}
2... d6 {[%clk 0:04:59.6]} 3. Nc3 {[%clk 0:04:52.7]} 3... Nd7 {[%clk 0:04:59.5]}
4. Nf3 {[%clk 0:04:47.4]} 4... Bg7 {[%clk 0:04:58.8]} 5. g3 {[%clk 0:04:37.8]}
5... Ngf6 {[%clk 0:04:57.6]} 6. Bg2 {[%clk 0:04:36.1]} 6... O-O {[%clk
0:04:57.1]} 7. O-O {[%clk 0:04:34.6]} 7... c5 {[%clk 0:04:56.7]} 8. h3 {[%clk
0:04:30.5]} 8... cxd4 {[%clk 0:04:56]} 9. Nxd4 {[%clk 0:04:29.4]} 9... a6 {[%clk
0:04:55.7]} 10. a4 {[%clk 0:04:23.4]} 10... Rb8 {[%clk 0:04:53.5]} 11. Be3
{[%clk 0:04:20.4]} 11... Nc5 {[%clk 0:04:51.5]} 12. a5 {[%clk 0:04:02.1]} 12...
Bd7 {[%clk 0:04:48.9]} 13. Re1 {[%clk 0:03:58.4]} 13... Rc8 {[%clk 0:04:47.2]}
14. Qd2 {[%clk 0:03:52.8]} 14... Rc7 {[%clk 0:04:45]} 15. Bh6 {[%clk 0:03:46.4]}
15... Bh8 {[%clk 0:04:41.4]} 16. Bxf8 {[%clk 0:03:43.8]} 16... Qxf8 {[%clk
0:04:40.6]} 17. Nd5 {[%clk 0:03:12.4]} 17... Nxd5 {[%clk 0:04:39.5]} 18. exd5
{[%clk 0:03:12.3]} 18... Bf6 {[%clk 0:04:39.1]} 19. b4 {[%clk 0:03:06.8]} 19...
Na4 {[%clk 0:04:37.6]} 20. Rxa4 {[%clk 0:02:38.4]} 20... Bxa4 {[%clk 0:04:35.9]}
21. c3 {[%clk 0:02:38.1]} 21... Qc8 {[%clk 0:04:33.9]} 22. Re3 {[%clk
0:02:19.2]} 22... Bd7 {[%clk 0:04:30.2]} 23. Kh2 {[%clk 0:02:17.2]} 23... Rc4
{[%clk 0:04:29.1]} 24. Ne2 {[%clk 0:02:09.8]} 24... h5 {[%clk 0:04:26.2]} 25.
Nf4 {[%clk 0:02:03.3]} 25... h4 {[%clk 0:04:23.7]} 26. gxh4 {[%clk 0:01:53.2]}
26... Rxf4 {[%clk 0:04:20.6]} 0-1

[Event "Live Chess"]
[Site "Chess.com"]
[Date "2024.06.02"]
[Round "-"]
[White "Ninifu"]
[Black "Dhaydon19"]
[Result "0-1"]
[WhiteElo "2014"]
[BlackElo "2642"]
[TimeControl "300"]
[EndTime "5:47:17 PDT"]
[Termination "Dhaydon19 won by resignation"]

1. d4 {[%clk 0:04:56]} 1... c6 {[%clk 0:04:59.4]} 2. c4 {[%clk 0:04:53.3]} 2...
d5 {[%clk 0:04:58.8]} 3. cxd5 {[%clk 0:04:50.2]} 3... cxd5 {[%clk 0:04:57.6]} 4.
Nc3 {[%clk 0:04:49.5]} 4... Nf6 {[%clk 0:04:56.7]} 5. Bf4 {[%clk 0:04:47.6]}
5... Nc6 {[%clk 0:04:52.2]} 6. e3 {[%clk 0:04:46.8]} 6... e6 {[%clk 0:04:50.8]}
7. Rc1 {[%clk 0:04:46]} 7... a6 {[%clk 0:04:48]} 8. Bd3 {[%clk 0:04:42]} 8...
Bd6 {[%clk 0:04:45.7]} 9. Bxd6 {[%clk 0:04:38.8]} 9... Qxd6 {[%clk 0:04:45.2]}
10. Nf3 {[%clk 0:04:38.2]} 10... e5 {[%clk 0:04:42.2]} 11. dxe5 {[%clk 0:04:34]}
11... Nxe5 {[%clk 0:04:41.7]} 12. Nxe5 {[%clk 0:04:29.4]} 12... Qxe5 {[%clk
0:04:41.2]} 13. O-O {[%clk 0:04:23.3]} 13... O-O {[%clk 0:04:18.9]} 14. Ne2
{[%clk 0:04:19.4]} 14... Bg4 {[%clk 0:04:17.7]} 15. Qd2 {[%clk 0:04:11.9]} 15...
Bxe2 {[%clk 0:04:14.8]} 16. Bxe2 {[%clk 0:04:08.2]} 16... Rac8 {[%clk
0:04:11.6]} 17. Rfd1 {[%clk 0:04:04.5]} 17... g6 {[%clk 0:04:07.9]} 18. Bf3
{[%clk 0:04:03.7]} 18... Rxc1 {[%clk 0:04:05.5]} 19. Rxc1 {[%clk 0:04:01.3]}
19... Rd8 {[%clk 0:04:05]} 20. g3 {[%clk 0:03:55.5]} 20... Kg7 {[%clk
0:04:00.1]} 21. Rd1 {[%clk 0:03:41.7]} 21... Rd7 {[%clk 0:03:57.3]} 22. Qd4
{[%clk 0:03:40.8]} 22... Qxd4 {[%clk 0:03:55.6]} 23. Rxd4 {[%clk 0:03:39.5]}
23... Kf8 {[%clk 0:03:54.7]} 24. h4 {[%clk 0:03:38.3]} 24... Ke7 {[%clk
0:03:53.2]} 25. Kf1 {[%clk 0:03:37.3]} 25... Kd6 {[%clk 0:03:48.1]} 26. Ke2
{[%clk 0:03:36.5]} 26... Ke5 {[%clk 0:03:46.8]} 27. Kd2 {[%clk 0:03:28.2]} 27...
h5 {[%clk 0:03:44]} 28. b4 {[%clk 0:03:23]} 28... Rc7 {[%clk 0:03:42.1]} 29. a3
{[%clk 0:03:18.9]} 29... b5 {[%clk 0:03:37.4]} 30. Rd3 {[%clk 0:03:17.5]} 30...
Rc4 {[%clk 0:03:34.2]} 31. Rc3 {[%clk 0:03:14.4]} 31... Ne4+ {[%clk 0:03:25.6]}
32. Bxe4 {[%clk 0:03:11.7]} 32... Kxe4 {[%clk 0:03:24.6]} 33. Rd3 {[%clk
0:02:27.4]} 33... f6 {[%clk 0:03:21.3]} 34. f3+ {[%clk 0:02:06.4]} 34... Kxf3
{[%clk 0:03:16.8]} 35. Rxd5 {[%clk 0:02:05.7]} 35... Kxg3 {[%clk 0:03:14.9]} 36.
Rd6 {[%clk 0:02:04.9]} 36... Kxh4 {[%clk 0:03:12.5]} 37. Rxf6 {[%clk 0:02:04.3]}
37... Kg5 {[%clk 0:03:11.9]} 38. Rxa6 {[%clk 0:02:00.8]} 38... h4 {[%clk
0:03:10.9]} 39. Rb6 {[%clk 0:01:54.3]} 39... h3 {[%clk 0:03:08.7]} 40. Rxb5+
{[%clk 0:01:53.6]} 40... Kh6 {[%clk 0:03:05.3]} 41. Rb8 {[%clk 0:01:41.3]} 41...
Rh4 {[%clk 0:03:03.4]} 42. Rc8 {[%clk 0:01:25]} 42... h2 {[%clk 0:03:01.3]} 43.
Rc1 {[%clk 0:01:24.5]} 43... h1=Q {[%clk 0:02:59.9]} 44. Rxh1 {[%clk 0:01:23.8]}
44... Rxh1 {[%clk 0:02:59.5]} 45. Kc3 {[%clk 0:01:17]} 45... g5 {[%clk
0:02:58.3]} 46. b5 {[%clk 0:01:16.2]} 46... g4 {[%clk 0:02:57]} 47. a4 {[%clk
0:01:11]} 47... g3 {[%clk 0:02:56]} 48. b6 {[%clk 0:01:09.6]} 48... g2 {[%clk
0:02:54.2]} 49. a5 {[%clk 0:01:03.3]} 49... g1=Q {[%clk 0:02:52]} 0-1

[Event "Live Chess"]
[Site "Chess.com"]
[Date "2024.06.02"]
[Round "-"]
[White "GMMickeyAdams"]
[Black "Bradfield133"]
[Result "1-0"]
[WhiteElo "2800"]
[BlackElo "1846"]
[TimeControl "300"]
[EndTime "5:47:56 PDT"]
[Termination "GMMickeyAdams won by resignation"]

1. c4 {[%clk 0:04:55.3]} 1... c5 {[%clk 0:04:53.8]} 2. Nf3 {[%clk 0:04:53.5]}
2... g6 {[%clk 0:04:49.4]} 3. Nc3 {[%clk 0:04:52.9]} 3... Bg7 {[%clk 0:04:48.5]}
4. e3 {[%clk 0:04:52]} 4... Nf6 {[%clk 0:04:40.1]} 5. d4 {[%clk 0:04:50.9]} 5...
cxd4 {[%clk 0:04:36.5]} 6. exd4 {[%clk 0:04:50]} 6... d5 {[%clk 0:04:30.6]} 7.
c5 {[%clk 0:04:48.7]} 7... O-O {[%clk 0:04:28.1]} 8. h3 {[%clk 0:04:47.6]} 8...
Nc6 {[%clk 0:04:22]} 9. Bb5 {[%clk 0:04:45.6]} 9... Qc7 {[%clk 0:04:13]} 10. O-O
{[%clk 0:04:43.8]} 10... a6 {[%clk 0:04:06.8]} 11. Bxc6 {[%clk 0:04:42]} 11...
Qxc6 {[%clk 0:04:03.1]} 12. Ne5 {[%clk 0:04:39.8]} 12... Qc7 {[%clk 0:04:01.3]}
13. Bf4 {[%clk 0:04:38.3]} 13... Qd8 {[%clk 0:04:00.3]} 14. Re1 {[%clk
0:04:33.6]} 14... Be6 {[%clk 0:03:41.7]} 15. Qb3 {[%clk 0:04:31.4]} 15... Nd7
{[%clk 0:03:30.9]} 16. Qxb7 {[%clk 0:04:17.6]} 16... Rb8 {[%clk 0:03:24]} 17.
Qxa6 {[%clk 0:04:15.1]} 17... Rxb2 {[%clk 0:03:21.8]} 18. Nc6 {[%clk 0:04:12.5]}
18... Qe8 {[%clk 0:03:11.9]} 19. Nxd5 {[%clk 0:03:58.8]} 19... Bxd5 {[%clk
0:03:02.2]} 20. Nxe7+ {[%clk 0:03:57.1]} 20... Qxe7 {[%clk 0:02:55.3]} 21. Rxe7
{[%clk 0:03:54.7]} 21... Nf6 {[%clk 0:02:46.9]} 22. Be5 {[%clk 0:03:51.2]} 22...
Ne4 {[%clk 0:02:38.1]} 23. Bxg7 {[%clk 0:03:42.8]} 23... Kxg7 {[%clk 0:02:34.3]}
24. Rxe4 {[%clk 0:03:35.9]} 24... Bxe4 {[%clk 0:02:31.5]} 25. Qd6 {[%clk
0:03:35.4]} 25... Kg8 {[%clk 0:02:06]} 26. c6 {[%clk 0:03:31.5]} 26... Bf5
{[%clk 0:01:36.7]} 27. d5 {[%clk 0:03:29.2]} 27... Rc2 {[%clk 0:01:24.3]} 28. a4
{[%clk 0:03:25.3]} 28... Re8 {[%clk 0:01:20.9]} 29. a5 {[%clk 0:03:23]} 29...
Ree2 {[%clk 0:01:18.6]} 30. Qf4 {[%clk 0:03:21.4]} 30... Re4 {[%clk 0:01:08.6]}
31. Qf3 {[%clk 0:03:17.5]} 31... Rec4 {[%clk 0:01:01.9]} 32. a6 {[%clk
0:03:15.7]} 32... Be4 {[%clk 0:00:57.9]} 33. Qf6 {[%clk 0:03:12.1]} 33... Bxd5
{[%clk 0:00:54.9]} 34. Qd8+ {[%clk 0:03:06.6]} 34... Kg7 {[%clk 0:00:49.9]} 35.
Qxd5 {[%clk 0:03:06.1]} 35... Rxc6 {[%clk 0:00:48.9]} 36. a7 {[%clk 0:03:05.2]}
1-0

[Event "Live Chess"]
[Site "Chess.com"]
[Date "2024.06.02"]
[Round "-"]
[White "TheSmoulderingMaster"]
[Black "GEMdzq"]
[Result "0-1"]
[WhiteElo "1771"]
[BlackElo "2297"]
[TimeControl "300"]
[EndTime "5:48:06 PDT"]
[Termination "GEMdzq won by resignation"]

1. e4 {[%clk 0:04:57.4]} 1... Nf6 {[%clk 0:04:58.2]} 2. e5 {[%clk 0:04:56.3]}
2... Nd5 {[%clk 0:04:57.4]} 3. d4 {[%clk 0:04:54.9]} 3... d6 {[%clk 0:04:56.5]}
4. c4 {[%clk 0:04:53.8]} 4... Nb6 {[%clk 0:04:55.3]} 5. f4 {[%clk 0:04:53.1]}
5... g6 {[%clk 0:04:54]} 6. Nf3 {[%clk 0:04:52.3]} 6... Bg7 {[%clk 0:04:52.8]}
7. Bd3 {[%clk 0:04:51.2]} 7... O-O {[%clk 0:04:49.9]} 8. O-O {[%clk 0:04:48.8]}
8... dxe5 {[%clk 0:04:48.4]} 9. fxe5 {[%clk 0:04:47.7]} 9... Bg4 {[%clk
0:04:46.1]} 10. Be2 {[%clk 0:04:46]} 10... Nc6 {[%clk 0:04:43.7]} 11. Be3 {[%clk
0:04:43.3]} 11... Bxf3 {[%clk 0:04:40.8]} 12. Bxf3 {[%clk 0:04:41.4]} 12... Nxc4
{[%clk 0:04:39.5]} 13. Bf2 {[%clk 0:04:39]} 13... Nb6 {[%clk 0:04:20.3]} 14. Nc3
{[%clk 0:04:36.1]} 14... Nb4 {[%clk 0:04:12.7]} 15. a3 {[%clk 0:04:33]} 15...
N4d5 {[%clk 0:04:11]} 16. Ne4 {[%clk 0:04:31.7]} 16... Nc4 {[%clk 0:03:56.9]}
17. Qb3 {[%clk 0:04:27.2]} 17... b5 {[%clk 0:03:41.6]} 18. Qxb5 {[%clk
0:04:21.3]} 18... Nce3 {[%clk 0:03:39.9]} 19. Rfe1 {[%clk 0:04:16.7]} 19... Nc2
{[%clk 0:03:32.9]} 20. Nc5 {[%clk 0:04:11.1]} 20... Nxe1 {[%clk 0:03:29.2]} 21.
Rxe1 {[%clk 0:04:09.3]} 21... Rb8 {[%clk 0:03:26.8]} 22. Qc4 {[%clk 0:04:06.5]}
22... Nf4 {[%clk 0:03:20.4]} 23. d5 {[%clk 0:03:58.9]} 23... Rxb2 {[%clk
0:03:14.9]} 24. Qxf4 {[%clk 0:03:56.7]} 24... f6 {[%clk 0:03:01.9]} 25. e6
{[%clk 0:03:48.9]} 25... Qd6 {[%clk 0:02:57.8]} 26. Qxd6 {[%clk 0:03:47.1]}
26... cxd6 {[%clk 0:02:57.1]} 27. Nd7 {[%clk 0:03:42.8]} 27... Rc8 {[%clk
0:02:49.9]} 28. h3 {[%clk 0:03:36.4]} 28... a5 {[%clk 0:02:47.2]} 29. Bd4 {[%clk
0:03:21.9]} 29... Rb3 {[%clk 0:02:40.6]} 30. Bb6 {[%clk 0:03:17.2]} 30... a4
{[%clk 0:02:37.5]} 31. Bd1 {[%clk 0:03:11.4]} 31... Rxa3 {[%clk 0:02:26.9]} 32.
Bd4 {[%clk 0:03:08.7]} 32... f5 {[%clk 0:02:21]} 33. Bxg7 {[%clk 0:03:06.8]}
33... Kxg7 {[%clk 0:02:20.8]} 34. Nb6 {[%clk 0:02:55.3]} 34... Rc1 {[%clk
0:02:17.3]} 35. Kf1 {[%clk 0:02:50]} 35... Raa1 {[%clk 0:02:16]} 0-1

[Event "Live Chess"]
[Site "Chess.com"]
[Date "2024.06.02"]
[Round "-"]
[White "halfberg"]
[Black "dmitro74"]
[Result "0-1"]
[WhiteElo "1868"]
[BlackElo "1739"]
[TimeControl "300"]
[EndTime "5:48:13 PDT"]
[Termination "dmitro74 won by resignation"]

1. e4 {[%clk 0:04:55.3]} 1... e6 {[%clk 0:04:58.9]} 2. d4 {[%clk 0:04:53.7]}
2... d5 {[%clk 0:04:58.5]} 3. Nc3 {[%clk 0:04:52.8]} 3... dxe4 {[%clk
0:04:57.1]} 4. Nxe4 {[%clk 0:04:51.7]} 4... Nd7 {[%clk 0:04:56.7]} 5. Nf3 {[%clk
0:04:49.3]} 5... Ngf6 {[%clk 0:04:56.3]} 6. Bd3 {[%clk 0:04:48.2]} 6... c5
{[%clk 0:04:49.2]} 7. c3 {[%clk 0:04:42.2]} 7... cxd4 {[%clk 0:04:42.8]} 8. cxd4
{[%clk 0:04:40.8]} 8... Bb4+ {[%clk 0:04:35.4]} 9. Bd2 {[%clk 0:04:37.8]} 9...
Bxd2+ {[%clk 0:04:33.3]} 10. Qxd2 {[%clk 0:04:37.4]} 10... O-O {[%clk
0:04:27.8]} 11. O-O {[%clk 0:04:36]} 11... b6 {[%clk 0:04:20.7]} 12. Rac1 {[%clk
0:04:32.4]} 12... Bb7 {[%clk 0:04:14.4]} 13. Rfe1 {[%clk 0:04:28.6]} 13... Nxe4
{[%clk 0:04:11.2]} 14. Bxe4 {[%clk 0:04:27.1]} 14... Bxe4 {[%clk 0:04:07]} 15.
Rxe4 {[%clk 0:04:26.1]} 15... Nf6 {[%clk 0:04:05.5]} 16. Ree1 {[%clk 0:04:21.4]}
16... Rc8 {[%clk 0:04:00.4]} 17. h3 {[%clk 0:04:19.9]} 17... Qd5 {[%clk
0:03:51.1]} 18. b3 {[%clk 0:04:04.6]} 18... Ne4 {[%clk 0:03:42.8]} 19. Qe3
{[%clk 0:03:58]} 19... Nd6 {[%clk 0:03:37.6]} 20. Ne5 {[%clk 0:03:54.1]} 20...
Nf5 {[%clk 0:03:31.1]} 21. Rxc8 {[%clk 0:03:40.1]} 21... Nxe3 {[%clk 0:03:15.4]}
22. Rxf8+ {[%clk 0:03:35.9]} 22... Kxf8 {[%clk 0:03:12.9]} 23. fxe3 {[%clk
0:03:35.5]} 23... f6 {[%clk 0:03:08.1]} 24. Nf3 {[%clk 0:03:30.6]} 24... e5
{[%clk 0:02:49.2]} 25. e4 {[%clk 0:03:17.7]} 25... Qa5 {[%clk 0:02:41.1]} 26.
Re2 {[%clk 0:03:04.5]} 26... exd4 {[%clk 0:02:36.7]} 27. Nxd4 {[%clk 0:03:02.7]}
27... Qc5 {[%clk 0:02:33.8]} 28. Kf2 {[%clk 0:02:44.4]} 28... Qxd4+ {[%clk
0:02:31.9]} 29. Kf3 {[%clk 0:02:41]} 29... Kf7 {[%clk 0:02:25]} 30. a4 {[%clk
0:02:31.4]} 30... h5 {[%clk 0:02:23.2]} 31. g3 {[%clk 0:02:22.7]} 31... Qd1
{[%clk 0:02:16.7]} 0-1

[Event "Live Chess"]
[Site "Chess.com"]
[Date "2024.06.02"]
[Round "-"]
[White "juniortay"]
[Black "dhairyapandyauk"]
[Result "1-0"]
[WhiteElo "2343"]
[BlackElo "1639"]
[TimeControl "300"]
[EndTime "5:48:23 PDT"]
[Termination "juniortay won by checkmate"]

1. e4 {[%clk 0:04:57.7]} 1... e5 {[%clk 0:04:58.7]} 2. Nc3 {[%clk 0:04:56.1]}
2... Bc5 {[%clk 0:04:57.2]} 3. Bc4 {[%clk 0:04:54.3]} 3... Nc6 {[%clk
0:04:52.9]} 4. Qg4 {[%clk 0:04:52.9]} 4... g6 {[%clk 0:04:45.8]} 5. Qf3 {[%clk
0:04:51.8]} 5... f5 {[%clk 0:04:34.9]} 6. exf5 {[%clk 0:04:47.2]} 6... Nd4
{[%clk 0:04:34]} 7. Qd5 {[%clk 0:04:46.3]} 7... Qe7 {[%clk 0:04:27.6]} 8. Ne4
{[%clk 0:04:38.4]} 8... d6 {[%clk 0:04:21]} 9. Nxc5 {[%clk 0:04:35.1]} 9... dxc5
{[%clk 0:04:19.5]} 10. Bb3 {[%clk 0:04:11]} 10... c6 {[%clk 0:04:13.4]} 11. Qe4
{[%clk 0:03:56.7]} 11... Bxf5 {[%clk 0:04:11.6]} 12. Qe3 {[%clk 0:03:55.7]}
12... Bxc2 {[%clk 0:04:05.2]} 13. Ne2 {[%clk 0:03:35.8]} 13... Bxb3 {[%clk
0:04:02.6]} 14. Nxd4 {[%clk 0:03:34]} 14... exd4 {[%clk 0:03:59.5]} 15. Qxe7+
{[%clk 0:03:32.8]} 15... Nxe7 {[%clk 0:03:58.2]} 16. axb3 {[%clk 0:03:32.7]}
16... Kf7 {[%clk 0:03:56.5]} 17. d3 {[%clk 0:03:31.8]} 17... Rhe8 {[%clk
0:03:52.5]} 18. O-O {[%clk 0:03:30.5]} 18... Nd5 {[%clk 0:03:50]} 19. Bd2 {[%clk
0:03:28]} 19... Re2 {[%clk 0:03:48.5]} 20. Rad1 {[%clk 0:03:25.6]} 20... Rae8
{[%clk 0:03:46.1]} 21. g3 {[%clk 0:03:22.8]} 21... a6 {[%clk 0:03:31.8]} 22. Kg2
{[%clk 0:03:21.2]} 22... Ne3+ {[%clk 0:03:25.6]} 23. Bxe3 {[%clk 0:03:20]} 23...
dxe3 {[%clk 0:03:24.9]} 24. Kf3 {[%clk 0:03:11.6]} 24... Rxb2 {[%clk 0:03:17.5]}
25. fxe3 {[%clk 0:03:10.4]} 25... Rxh2 {[%clk 0:03:05.1]} 26. g4 {[%clk
0:03:04.3]} 26... Kg7 {[%clk 0:03:01.3]} 27. e4 {[%clk 0:03:00.4]} 27... Rb2
{[%clk 0:02:52.9]} 28. Rb1 {[%clk 0:02:56.9]} 28... Rxb1 {[%clk 0:02:49.8]} 29.
Rxb1 {[%clk 0:02:55.1]} 29... Rd8 {[%clk 0:02:49.2]} 30. Ke3 {[%clk 0:02:54.1]}
30... Kf6 {[%clk 0:02:47.9]} 31. Rf1+ {[%clk 0:02:52]} 31... Ke6 {[%clk
0:02:46.6]} 32. g5 {[%clk 0:02:50.5]} 32... b5 {[%clk 0:02:37.7]} 33. Rf6+
{[%clk 0:02:45.7]} 33... Kd7 {[%clk 0:02:35.5]} 34. Rf7+ {[%clk 0:02:44.7]}
34... Kd6 {[%clk 0:02:34.7]} 35. Rxh7 {[%clk 0:02:44.3]} 35... Ra8 {[%clk
0:02:22.8]} 36. Rg7 {[%clk 0:02:41.2]} 36... a5 {[%clk 0:02:21.9]} 37. Rxg6+
{[%clk 0:02:40.5]} 37... Ke5 {[%clk 0:02:19]} 38. Rxc6 {[%clk 0:02:38.2]} 38...
a4 {[%clk 0:02:18.2]} 39. bxa4 {[%clk 0:02:37.5]} 39... bxa4 {[%clk 0:02:16.5]}
40. Rxc5+ {[%clk 0:02:36.9]} 40... Kd6 {[%clk 0:02:15.1]} 41. Rc2 {[%clk
0:02:35.7]} 41... a3 {[%clk 0:02:14.3]} 42. Ra2 {[%clk 0:02:34.8]} 42... Kc5
{[%clk 0:02:12]} 43. e5 {[%clk 0:02:23.4]} 43... Kb4 {[%clk 0:01:50]} 44. Ke4
{[%clk 0:02:20.3]} 44... Kb3 {[%clk 0:01:48.1]} 45. Ra1 {[%clk 0:02:15.4]} 45...
Kb2 {[%clk 0:01:46.6]} 46. Rg1 {[%clk 0:02:10.5]} 46... a2 {[%clk 0:01:45.3]}
47. e6 {[%clk 0:02:07.7]} 47... a1=Q {[%clk 0:01:44]} 48. Rxa1 {[%clk
0:02:06.6]} 48... Rxa1 {[%clk 0:01:43.1]} 49. d4 {[%clk 0:02:03.2]} 49... Re1+
{[%clk 0:01:42.1]} 50. Kd5 {[%clk 0:01:59.4]} 50... Kc3 {[%clk 0:01:41.2]} 51.
g6 {[%clk 0:01:57.1]} 51... Rd1 {[%clk 0:01:36]} 52. e7 {[%clk 0:01:53.7]} 52...
Rxd4+ {[%clk 0:01:34.7]} 53. Ke5 {[%clk 0:01:52.7]} 53... Rd1 {[%clk 0:01:33.1]}
54. g7 {[%clk 0:01:50.1]} 54... Re1+ {[%clk 0:01:31.5]} 55. Kd6 {[%clk
0:01:47.7]} 55... Rd1+ {[%clk 0:01:29.7]} 56. Kc6 {[%clk 0:01:46.6]} 56... Re1
{[%clk 0:01:17.7]} 57. g8=Q {[%clk 0:01:44.7]} 57... Rxe7 {[%clk 0:01:16.1]} 58.
Qg3+ {[%clk 0:01:42.1]} 58... Kc4 {[%clk 0:01:13.5]} 59. Qf3 {[%clk 0:01:35.6]}
59... Re6+ {[%clk 0:01:09.8]} 60. Kd7 {[%clk 0:01:34.5]} 60... Rb6 {[%clk
0:01:02]} 61. Qe4+ {[%clk 0:01:31.3]} 61... Kc5 {[%clk 0:01:00.3]} 62. Qe3+
{[%clk 0:01:29.1]} 62... Kb5 {[%clk 0:00:59.2]} 63. Kc7 {[%clk 0:01:27.1]} 63...
Rc6+ {[%clk 0:00:58]} 64. Kb7 {[%clk 0:01:26.3]} 64... Rc5 {[%clk 0:00:54.7]}
65. Qb3+ {[%clk 0:01:22.2]} 65... Ka5 {[%clk 0:00:53.5]} 66. Qb6+ {[%clk
0:01:19.5]} 66... Ka4 {[%clk 0:00:52.7]} 67. Qxc5 {[%clk 0:01:18.8]} 67... Kb3
{[%clk 0:00:52.1]} 68. Qd4 {[%clk 0:01:17.4]} 68... Ka3 {[%clk 0:00:51]} 69. Qc4
{[%clk 0:01:15.7]} 69... Kb2 {[%clk 0:00:49.9]} 70. Qd3 {[%clk 0:01:15]} 70...
Ka2 {[%clk 0:00:48.3]} 71. Qc3 {[%clk 0:01:13.8]} 71... Kb1 {[%clk 0:00:46.9]}
72. Qd2 {[%clk 0:01:12.9]} 72... Ka1 {[%clk 0:00:45.8]} 73. Kb6 {[%clk
0:01:12.4]} 73... Kb1 {[%clk 0:00:45.5]} 74. Kb5 {[%clk 0:01:12.1]} 74... Ka1
{[%clk 0:00:45]} 75. Kb4 {[%clk 0:01:12]} 75... Kb1 {[%clk 0:00:44.6]} 76. Kb3
{[%clk 0:01:11.7]} 76... Ka1 {[%clk 0:00:44.3]} 77. Qb2# {[%clk 0:01:11.4]} 1-0